[Event "RUS-ch Rapid Men 2018"]
[Site "Sochi"]
[Date "2018.10.06"]
[Round "11"]
[White "Jary, Sergey"]
[Black "Chekhov, Sergei"]
[Result "0-1"]
[ECO "A45"]
[WhiteElo "2286"]
[BlackElo "2463"]
[Annotator "RC"]
[PlyCount "92"]
[EventDate "2018.10.05"]
[EventType "swiss"]
[EventCountry "RUS"]
[SourceTitle "playchess.com"]
[Source "ChessBase"]
[SourceQuality "1"]
[TimeControl "900+10"]

1. d4 {[%emt 0:00:00]} Nf6 {[%emt 0:00:00]} 2. g3 {[%emt 0:00:00]} e6 {[%emt 0:00:13]} 3. Bg2 {[%emt 0:00:00]} c5 {[%emt 0:00:01]} 4. c3 {[%emt 0:00:02]} Be7 {[%emt 0:00:11]} 5. e4 {[%emt 0:00:05]} d5 {[%emt 0:00:18]} 6. e5 {[%emt 0:00:12]} Nfd7 {[%emt 0:00:02]} 7. Ne2 {[%emt 0:00:01]} b6 {[%emt 0:00:05]} 8. O-O {[%emt 0:00:06]} Nc6 {[%emt 0:00:07]} 9. f4 {[%emt 0:00:16]} g6 {[%emt 0:00:08]} 10. Be3 {[%emt 0:00:12]} h5 {[%emt 0:00:07]} 11. Nd2 {[%emt 0:00:07]} a5 {[%emt 0:00:05]} 12. Nf3 {[%emt 0:00:06]} Ba6 {[%emt 0:00:14]} 13. Re1 {[%emt 0:00:11]} Qc7 {[%emt 0:00:47]} 14. Qd2 {[%emt 0:00:10]} a4 {[%emt 0:00:38]} 15. Kf2 {[%emt 0:00:12]} Na5 {[%emt 0:00:09]} 16. Qc2 {[%emt 0:00:47]} cxd4 {[%emt 0:01:05]} 17. Nexd4 {[%emt 0:00:19]} Nc5 {[%emt 0:00:10]} 18. Bf1 {[%emt 0:00:08]} Ne4+ {[%emt 0:01:00]} 19. Kg2 {[%emt 0:00:13]} Bxf1+ {[%emt 0:00:05]} 20. Rxf1 {[%emt 0:00:21]} a3 {[%emt 0:00:40]} 21. b4 {[%emt 0:00:26]} Nc4 {[%emt 0:00:18]} 22. Bg1 {[%emt 0:00:11]} h4 {[%emt 0:00:08]} 23. Rae1 {[%emt 0:01:52]} Nb2 {[%emt 0:01:29]} 24. Ng5 {[%emt 0:03:49]} Bxg5 {[%emt 0:01:17]} 25. Rxe4 {[%emt 0:00:02]} dxe4 {[%emt 0:00:20]} 26. Nb5 {[%emt 0:00:26]} Qc6 {[%emt 0:00:40]} 27. Nd6+ {[%emt 0:00:01]} Ke7 {[%emt 0:00:01]} 28. fxg5 {[%emt 0:00:15]} e3+ {[%emt 0:00:22]} 29. Kh3 {[%emt 0:00:05]} hxg3+ {[%emt 0:00:28]} 30. Kxg3 {[%emt 0:00:04]} Rh7 {[%emt 0:00:21]} 31. Qe4 {[%emt 0:03:24]} Qxe4 32. Nxe4 {[%emt 0:00:01]} Rah8 {[%emt 0:01:44]} 33. Kf3 {[%emt 0:00:33]} Nc4 {[%emt 0:00:13]} 34. Ke2 {[%emt 0:00:32]} Rd8 {[%emt 0:00:47]} 35. Rf4 {[%emt 0:00:54]} Nxe5 {[%emt 0:00:38]} 36. h4 {[%emt 0:00:44]} Nd3 {[%emt 0:00:41]} 37. Rg4 {[%emt 0:00:03]} Ne5 {[%emt 0:00:10]} 38. Rf4 {[%emt 0:00:07]} Nd3 {[%emt 0:00:01]} 39. Rg4 {[%emt 0:00:01]} Nc1+ {[%emt 0:00:01]} 40. Kxe3 {[%emt 0:00:37]} Nxa2 {[%emt 0:00:08]} 41. Bf2 {[%emt 0:03:14]} Nc1 {[%emt 0:01:20]} 42. Rg1 {[%emt 0:00:38]} Nb3 {[%emt 0:00:11]} 43. Nf6 {[%emt 0:00:05]} Rhh8 {[%emt 0:00:16]} 44. Kf3 {[%emt 0:00:06]} Rd3+ {[%emt 0:00:43]} 45. Kg2 {[%emt 0:00:14]} Rd2 {[%emt 0:00:23]} 46. Kf3 {[%emt 0:00:02]} Rxf2+ {[%emt 0:00:27]} 0-1